fUST/lending_fUST_20241016
["ID","MTS","AMOUNT","RATE_DAILY","PERIOD"]
[340307038,1729018242721,-151.0,0.0002474,7]
[340307039,1729018242730,-151.0,0.0002474,7]
[340307040,1729018242740,-151.0,0.0002474,7]
[340307041,1729018242749,-151.0,0.0002474,7]
[340307042,1729018242758,-151.0,0.0002474,7]
[340307043,1729018242767,-151.0,0.0002474,7]
[340307044,1729018242776,-151.0,0.0002474,7]
[340307045,1729018242785,-200.701863,0.0002474,7]
[340307046,1729018242794,-361.786113,0.0002474,7]
[340307047,1729018242804,-361.786113,0.0002474,7]
[340307048,1729018242813,-151.0,0.0002474,7]
[340307049,1729018242822,-263.057463,0.0002474,7]
[340307050,1729018242831,-263.057463,0.0002474,7]
[340307051,1729018242840,-151.0,0.0002474,7]
[340307052,1729018242850,-237.090991,0.0002474,7]
[340307053,1729018242860,-237.090991,0.0002474,7]
[340307054,1729018242869,-151.0,0.0002474,7]
[340307055,1729018242878,-30063.13801151,0.0002475,4]
[340307056,1729018242887,-14774.39817041,0.0002475,4]
[340307057,1729018242897,-151.0,0.0002475,7]
[340307058,1729018242906,-14845.67534551,0.0002475,2]
[340307059,1729018242915,-49153.15003073,0.0002475,2]
[340307077,1729018340035,-300.0,0.0002435,2]
[340307078,1729018340061,-500.0,0.00024351,2]
[340307079,1729018340088,-500.0,0.00024351,2]
[340307080,1729018340112,-500.0,0.00024351,2]
[340307081,1729018340137,-250.0,0.00024351,2]
[340307082,1729018340161,-500.0,0.00024351,2]
[340307083,1729018340184,-500.0,0.00024351,2]
[340307084,1729018340208,-500.0,0.00024351,2]
[340307085,1729018340232,-172.63012038,0.00024351,2]
[340307086,1729018340256,-500.0,0.00024351,2]
[340307087,1729018340281,-500.0,0.00024351,2]
[340307088,1729018340305,-500.0,0.00024351,2]
[340307089,1729018340331,-500.0,0.00024351,2]
[340307090,1729018340355,-500.0,0.00024351,2]
[340307091,1729018340382,-500.0,0.00024351,2]
[340307092,1729018340405,-500.0,0.00024351,2]
[340307093,1729018340429,-500.0,0.00024351,2]
[340307094,1729018340452,-500.0,0.00024351,2]
[340307095,1729018340476,-500.0,0.00024351,2]
[340307096,1729018340499,-3931.033892,0.00024493,7]
[340307097,1729018340520,-3931.033892,0.00024503,7]
[340307098,1729018340542,-1737.013855,0.0002454,7]
[340307099,1729018340564,-1737.013855,0.0002454,7]
[340307100,1729018340587,-151.0,0.0002454,3]
[340307101,1729018340610,-293.417329,0.0002454,3]
[340307102,1729018340632,-151.0,0.0002454,7]
[340307103,1729018340655,-10092.28670165,0.0002465,2]
[340307104,1729018340679,-1000.0,0.0002465,2]
[340307105,1729018340703,-366.802869,0.00024658,7]
[340307106,1729018340725,-366.802869,0.00024658,7]
[340307107,1729018340749,-500.0,0.00024658,2]
[340307108,1729018340772,-500.0,0.00024658,2]
[340307109,1729018340795,-620.0,0.00024658,2]
[340307110,1729018340817,-852.05,0.0002474,3]
[340307111,1729018340843,-426.03,0.0002474,3]
[340307112,1729018340867,-28531.22,0.0002474,10]
[340307113,1729018340890,-852.08,0.0002474,3]
[340307114,1729018341099,-23776.02,0.0002474,10]
[340307115,1729018341125,-131469.53885347,0.0002475,2]
[340307116,1729018341149,-151.0,0.0002475,7]
[340307117,1729018341174,-151.0,0.0002475,7]
[340307118,1729018341196,-151.0,0.0002475,7]
[340307119,1729018341218,-151.0,0.0002475,7]
[340307120,1729018341241,-151.0,0.0002475,7]
[340307121,1729018341263,-151.0,0.0002475,7]
[340307122,1729018341286,-151.0,0.0002475,7]
[340307123,1729018341309,-263.057463,0.0002475,7]
[340307124,1729018341333,-263.057463,0.0002475,7]
[340307125,1729018341355,-151.0,0.0002475,7]
[340307126,1729018341377,-151.0,0.0002475,7]
[340307127,1729018341400,-237.090991,0.0002475,7]
[340307128,1729018341426,-237.090991,0.0002475,7]
[340307129,1729018341449,-151.0,0.0002475,7]
[340307130,1729018341471,-222.0098,0.0002475,7]
[340307131,1729018341495,-151.0,0.0002475,7]
[340307132,1729018341517,-151.0,0.0002475,7]
[340307133,1729018341539,-151.0,0.0002475,7]
[340307134,1729018341561,-161.05263,0.0002475,7]
[340307135,1729018341584,-161.05263,0.0002475,7]
[340307136,1729018341606,-151.0,0.0002475,2]
[340307137,1729018341629,-151.0,0.0002475,2]
[340307138,1729018341653,-151.0,0.0002475,7]
[340307139,1729018341680,-151.0,0.0002475,7]
[340307140,1729018341703,-151.0,0.0002475,7]
[340307141,1729018341726,-151.0,0.0002475,7]
[340307142,1729018341750,-256.024179,0.0002475,7]
[340307143,1729018341771,-151.0,0.0002475,7]
[340307144,1729018341793,-256.024179,0.0002475,7]
[340307145,1729018341815,-151.0,0.0002475,7]
[340307146,1729018341838,-813.483686,0.0002475,7]
[340307147,1729018341862,-813.483686,0.0002475,7]
[340307148,1729018341884,-813.483686,0.0002475,7]
[340307149,1729018341907,-813.483686,0.0002475,7]
[340307150,1729018341930,-151.0,0.0002475,7]
[340307151,1729018341953,-163.902417,0.0002475,7]
[340307152,1729018341975,-151.0,0.0002475,7]
[340307153,1729018341998,-163.902417,0.0002475,7]
[340307154,1729018342020,-186.182559,0.0002475,7]
[340307155,1729018342042,-186.182559,0.0002475,7]
[340307156,1729018342064,-1008.667292,0.0002475,7]
[340307157,1729018342086,-1008.667292,0.0002475,7]
[340307158,1729018342107,-151.0,0.0002475,7]
[340307159,1729018342129,-151.0,0.0002475,7]
[340307160,1729018342151,-151.0,0.0002475,7]
[340307161,1729018342173,-151.0,0.0002475,7]
[340307162,1729018342195,-595.37762,0.0002475,7]
[340307163,1729018342216,-595.37762,0.0002475,7]
[340307164,1729018342238,-433.834572,0.0002475,7]
[340307165,1729018342261,-595.37762,0.0002475,7]
[340307166,1729018342284,-595.37762,0.0002475,7]
[340307167,1729018342306,-433.834572,0.0002475,7]
[340307168,1729018342331,-151.0,0.0002475,7]
[340307169,1729018342355,-393.938928,0.0002475,7]
[340307170,1729018342379,-393.938928,0.0002475,7]
[340307171,1729018342403,-2472.310134,0.0002475,7]
[340307172,1729018342425,-327.411365,0.0002475,7]
[340307173,1729018342448,-327.411365,0.0002475,7]
[340307174,1729018342470,-393.938928,0.0002475,7]
[340307175,1729018342491,-393.938928,0.0002475,7]
[340307176,1729018342514,-2472.310134,0.0002475,7]
[340307177,1729018342536,-327.411365,0.0002475,7]
[340307178,1729018342558,-327.411365,0.0002475,7]
[340307179,1729018342581,-3135.050326,0.0002475,7]
[340307180,1729018342603,-3135.050326,0.0002475,7]
[340307181,1729018342625,-3135.050326,0.0002475,7]
[340307182,1729018342647,-3135.050326,0.0002475,7]
[340307183,1729018342672,-4412.754101,0.0002475,7]
[340307184,1729018342693,-151.0,0.0002475,7]
[340307185,1729018342715,-151.0,0.0002475,7]
[340307186,1729018342738,-4412.754101,0.0002475,7]
[340307187,1729018342762,-978.538985,0.0002475,7]
[340307188,1729018342785,-978.538985,0.0002475,7]
[340307189,1729018342808,-978.538985,0.0002475,7]
[340307190,1729018342831,-978.538985,0.0002475,7]
[340307191,1729018342853,-403.347381,0.0002475,7]
[340307192,1729018342874,-403.347381,0.0002475,7]
[340307193,1729018342897,-403.347381,0.0002475,7]
[340307194,1729018342919,-403.347381,0.0002475,7]
[340307195,1729018342941,-722.692571,0.0002475,7]
[340307196,1729018342964,-151.0,0.0002475,7]
[340307197,1729018342986,-151.0,0.0002475,7]
[340307198,1729018343009,-722.692571,0.0002475,7]
[340307199,1729018343030,-151.0,0.0002475,7]
[340307200,1729018343052,-1080.492599,0.0002475,7]
[340307201,1729018343074,-1080.492599,0.0002475,7]
[340307202,1729018343097,-1080.492599,0.0002475,7]
[340307203,1729018343120,-1080.492599,0.0002475,7]
[340307204,1729018343143,-151.0,0.0002475,7]
[340307205,1729018343165,-151.0,0.0002475,7]
[340307206,1729018343186,-151.0,0.0002475,7]
[340307207,1729018343209,-151.0,0.0002475,7]
[340307208,1729018343230,-156.629942,0.0002475,7]
[340307209,1729018343253,-156.629942,0.0002475,7]
[340307210,1729018343276,-151.0,0.0002475,7]
[340307211,1729018343298,-156.629942,0.0002475,7]
[340307212,1729018343320,-4360.493203,0.0002475,7]
[340307213,1729018343342,-2040.9315565,0.0002475,7]
[340307214,1729018380454,171.675081,0.00023476,2]
[340307217,1729018541632,166.666666,0.00023248,2]
[340307220,1729018673813,151.0,0.0002371,2]
[340307221,1729018791480,157.876915,0.00023805,2]
[340307222,1729018791713,157.876915,0.00023943,2]
[340307225,1729019053219,166.666666,0.00023125,2]
[340307231,1729019306276,168.112813,0.00023693,2]
[340307232,1729019306538,168.112813,0.00023848,2]
[340307233,1729019307730,24900.0,0.00023517,2]
[340307262,1729019432668,-168.112813,0.00024002,2]
[340307263,1729019432677,-168.112813,0.00024156,2]
[340307264,1729019432687,-130.87367399,0.00024226,2]
[340307409,1729019451843,-23.94328242,0.00024226,2]
[340307410,1729019451853,-168.112813,0.00024311,2]
[340307411,1729019451863,-184.35928368,0.00024383,2]
[340307412,1729019451876,-3913.09632921,0.00024383,2]
[340307413,1729019451887,-282.72121869,0.000244,2]
[340307414,1729019451897,-282.72121869,0.000244,2]
[340307415,1729019451908,-282.72121869,0.00024462,2]
[340307416,1729019451918,-168.112813,0.00024465,2]
[340307417,1729019451928,-150.0,0.00024527,2]
[340307418,1729019451938,-745.5857168,0.00024548,2]
[340307419,1729019451948,-300.0,0.00024561,2]
[340307420,1729019451958,-5124.97093905,0.00024561,2]
[340307421,1729019452044,-2711.54464221,0.00024561,2]
[340307422,1729019452054,-3489.75535779,0.0002461,2]
[340307423,1729019452066,-131.58430792,0.0002461,2]
[340307424,1729019452077,-168.112813,0.00024619,2]
[340307425,1729019452086,-1797.62203704,0.0002462,2]
[340307426,1729019452096,-35961.65349768,0.00024621,3]
[340307427,1729019452105,-1000.0,0.00024621,2]
[340307428,1729019452115,-209.41121093,0.0002464,7]
[340307429,1729019452124,-171.164,0.0002465,7]
[340307430,1729019452133,-1000.0,0.00024655,2]
[340307431,1729019452143,-660.0,0.00024658,2]
[340307432,1729019452152,-500.0,0.00024673,2]
[340307433,1729019452162,-500.0,0.00024673,2]
[340307434,1729019452171,-500.0,0.00024673,2]
[340307435,1729019452180,-500.0,0.00024673,2]
[340307436,1729019452189,-500.0,0.00024673,2]
[340307437,1729019452199,-497.03,0.00024679,3]
[340307438,1729019452212,-248.51,0.00024679,3]
[340307439,1729019452221,-1041.99885653,0.00024688,2]
[340307440,1729019452230,-16511.12,0.00024688,10]
[340307441,1729019452239,-13759.27,0.00024688,10]
[340307442,1729019452249,-500.0,0.00024688,2]
[340307443,1729019452258,-500.0,0.00024688,2]
[340307444,1729019452267,-500.0,0.00024688,2]
[340307445,1729019452279,-500.0,0.00024688,2]
[340307446,1729019452292,-500.0,0.00024688,2]
[340307447,1729019452304,-500.0,0.00024688,2]
[340307448,1729019452316,-498.64806365,0.00024688,2]
[340307449,1729019452328,-500.0,0.00024688,2]
[340307450,1729019452340,-500.0,0.00024688,2]
[340307451,1729019452351,-500.0,0.00024688,2]
[340307452,1729019452363,-500.0,0.00024688,2]
[340307453,1729019452374,-500.0,0.00024688,2]
[340307454,1729019452385,-500.0,0.00024688,2]
[340307455,1729019452395,-500.0,0.00024688,2]
[340307456,1729019452407,-500.0,0.00024688,2]
[340307457,1729019452419,-474.34673235,0.00024688,2]
[340307458,1729019452431,-500.0,0.00024688,2]
[340307459,1729019452444,-500.0,0.00024688,2]
[340307460,1729019452456,-500.0,0.00024688,2]
[340307461,1729019452467,-500.0,0.00024688,2]
[340307462,1729019452479,-500.0,0.00024688,2]
[340307463,1729019452490,-500.0,0.00024688,2]
[340307464,1729019452501,-500.0,0.00024688,2]
[340307465,1729019452513,-500.0,0.00024688,2]
[340307466,1729019452525,-500.0,0.00024688,2]
[340307467,1729019452537,-500.0,0.00024688,2]
[340307468,1729019452548,-500.0,0.00024688,2]
[340307469,1729019452561,-500.0,0.00024688,2]
[340307470,1729019452572,-500.0,0.00024688,2]
[340307471,1729019452582,-500.0,0.00024688,2]
[340307472,1729019452594,-500.0,0.00024688,2]
[340307473,1729019452605,-500.0,0.00024688,2]
[340307474,1729019452617,-19813.35,0.00024689,10]
[340307475,1729019452628,-745.56,0.00024689,3]
[340307476,1729019452640,-150.0,0.00024698,2]
[340307477,1729019452652,-500.0,0.00024698,2]
[340307478,1729019452663,-150.0,0.00024698,2]
[340307479,1729019452675,-500.0,0.00024698,2]
[340307480,1729019452687,-150.0,0.00024698,2]
[340307481,1729019452698,-150.0,0.00024698,2]
[340307482,1729019452709,-237.62258575,0.00024698,2]
[340307483,1729019452720,-529.70480245,0.00024698,2]
[340307484,1729019452733,-500.0,0.00024698,2]
[340307485,1729019452744,-261.4491612,0.00024698,2]
[340307486,1729019452756,-172.92943704,0.00024698,2]
[340307487,1729019452767,-160.97527407,0.00024698,2]
[340307488,1729019452778,-19752.82606192,0.00024699,3]
[340307489,1729019452973,-2094.25000657,0.00024678,10]
[340307490,1729019453869,-97531.39064808,0.00024699,3]
[340307491,1729019453879,-39612.6250501,0.00024699,3]
[340307492,1729019453888,-150.112233,0.000247,4]
[340307493,1729019453899,-414.80386367,0.000247,2]
[340307494,1729019453909,-166.666666,0.00024701,2]
[340307495,1729019453919,-179827.02003642,0.00024711,3]
[340307496,1729019453931,-8048.7921312,0.00024711,3]
[340307497,1729019453943,-592.8048457,0.00024711,3]
[340307499,1729019653389,166.666666,0.0002328,2]
[340307501,1729019745234,151.0,0.0002371,2]
[340307504,1729019807836,24900.0,0.00023639,2]
[340307507,1729019945194,168.112813,0.00023797,2]
[340307508,1729020029987,4845.0659184,0.00023809,2]
[340307509,1729020037137,168.068325,0.00023346,2]
[340307513,1729020114525,1319.5105774,0.00023624,2]
[340307514,1729020182119,165.905,0.00023622,2]
[340307515,1729020182345,165.905,0.0002363,2]
[340307516,1729020182581,165.905,0.00023637,2]
[340307517,1729020182824,165.905,0.00023645,2]
[340307518,1729020183085,165.905,0.00023653,2]
[340307519,1729020183296,165.905,0.00023661,2]
[340307520,1729020183515,165.905,0.00023669,2]
[340307521,1729020183720,165.905,0.00023677,2]
[340307522,1729020184427,165.905,0.00023685,2]
[340307523,1729020184649,165.905,0.00023692,2]
[340307524,1729020184902,165.905,0.000237,2]
[340307525,1729020185143,165.905,0.00023708,2]
[340307526,1729020185357,165.905,0.00023716,2]
[340307527,1729020185612,165.905,0.00023724,2]
[340307528,1729020186072,165.905,0.00023732,2]
[340307529,1729020186417,165.905,0.0002374,2]
[340307530,1729020199111,166.666666,0.0002324,2]
[340307535,1729020495434,24900.0,0.00023626,2]
[340307537,1729020511431,3000.0,0.0002362,2]
[340307539,1729020513210,4201.98169614,0.00015,7]
[340307541,1729020519765,166.811282,0.0002381,2]
[340307542,1729020519984,166.811282,0.00023948,2]
[340307545,1729020550958,174.8005187,0.00023588,2]
[340307575,1729020638990,-166.811282,0.00024085,2]
[340307576,1729020639000,-166.811282,0.00024223,2]
[340307577,1729020639009,-166.811282,0.00024361,2]
[340307578,1729020639018,-166.811282,0.00024499,2]
[340307579,1729020639028,-300.0,0.00024559,2]
[340307580,1729020639037,-300.0,0.00024559,2]
[340307581,1729020639046,-9143.5997149,0.0002456,2]
[340307582,1729020639055,-1000.0,0.0002458,2]
[340307583,1729020639068,-3259.20569913,0.0002459,2]
[340307584,1729020639077,-10000.09,0.000246,2]
[340307585,1729020639087,-151.0,0.000246,2]
[340307586,1729020639095,-1000.0,0.00024602,2]
[340307587,1729020639105,-166.811282,0.00024637,2]
[340307588,1729020639114,-372.77,0.0002466,3]
[340307589,1729020639124,-186.38,0.0002466,3]
[340307590,1729020639133,-559.19,0.0002466,3]
[340307591,1729020639142,-150.0,0.00024669,2]
[340307592,1729020639155,-500.0,0.00024669,2]
[340307593,1729020639164,-150.0,0.00024669,2]
[340307594,1729020639174,-500.0,0.00024669,2]
[340307595,1729020639183,-150.0,0.00024669,2]
[340307596,1729020639192,-150.0,0.00024669,2]
[340307597,1729020639201,-14419.24,0.0002467,10]
[340307598,1729020639217,-12016.04,0.0002467,10]
[340307599,1729020639231,-1198.41469136,0.0002467,2]
[340307600,1729020639240,-500.0,0.00024673,2]
[340307601,1729020639249,-500.0,0.00024673,2]
[340307602,1729020639259,-30.78273188,0.00024673,2]
[340307603,1729020639272,-469.21726812,0.00024673,2]
[340307604,1729020639282,-271.02257768,0.00024673,2]
[340307605,1729020639291,-500.0,0.00024673,2]
[340307606,1729020639301,-339.37624012,0.00024673,2]
[340307607,1729020639310,-500.0,0.00024673,2]
[340307608,1729020639322,-500.0,0.00024673,2]
[340307609,1729020639331,-500.0,0.00024673,2]
[340307610,1729020639340,-377.38913227,0.00024673,2]
[340307611,1729020639350,-501.51851618,0.00024673,2]
[340307612,1729020639359,-500.0,0.00024673,2]
[340307613,1729020639369,-500.0,0.00024673,2]
[340307614,1729020639379,-168.5918535,0.00024673,2]
[340307615,1729020639388,-500.0,0.00024673,2]
[340307616,1729020639399,-500.0,0.00024673,2]
[340307617,1729020639411,-500.0,0.00024673,2]
[340307619,1729020639422,-620.1042838,0.00024673,2]
[340307621,1729020639431,-500.0,0.00024673,2]
[340307622,1729020639442,-395.09677809,0.00024673,2]
[340307623,1729020639456,-501.70662504,0.00024673,2]
[340307624,1729020639465,-500.0,0.00024673,2]
[340307625,1729020639476,-150.0,0.00024673,2]
[340307626,1729020639485,-500.0,0.00024679,2]
[340307627,1729020639495,-500.0,0.00024679,2]
[340307628,1729020639504,-500.0,0.00024679,2]
[340307629,1729020639515,-500.0,0.00024679,2]
[340307630,1729020639524,-500.0,0.00024679,2]
[340307631,1729020639534,-500.0,0.00024679,2]
[340307632,1729020639543,-500.0,0.00024679,2]
[340307633,1729020639553,-500.0,0.00024679,2]
[340307634,1729020639565,-500.0,0.00024679,2]
[340307636,1729020639575,-500.0,0.00024679,2]
[340307637,1729020639585,-174.34673235,0.00024679,2]
[340307638,1729020639595,-500.0,0.00024679,2]
[340307639,1729020639604,-500.0,0.00024679,2]
[340307640,1729020639614,-500.0,0.00024679,2]
[340307641,1729020639624,-199.86480637,0.00024679,2]
[340307643,1729020639634,-500.0,0.00024679,2]
[340307645,1729020639643,-500.0,0.00024679,2]
[340307647,1729020639653,-500.0,0.00024679,2]
[340307649,1729020639663,-500.0,0.00024679,2]
[340307651,1729020639672,-500.0,0.00024679,2]
[340307653,1729020639681,-500.0,0.00024679,2]
[340307655,1729020639691,-500.0,0.00024679,2]
[340307657,1729020639701,-500.0,0.00024679,2]
[340307658,1729020639711,-500.0,0.00024679,2]
[340307659,1729020639720,-500.0,0.00024679,2]
[340307660,1729020639730,-500.0,0.00024679,2]
[340307661,1729020639739,-529.70480245,0.00024679,2]
[340307662,1729020639749,-261.4491612,0.00024679,2]
[340307663,1729020639759,-160.97527407,0.00024679,2]
[340307664,1729020639768,-237.62258575,0.00024679,2]
[340307665,1729020639777,-172.92943704,0.00024679,2]
[340307666,1729020639787,-450.0,0.00024679,2]
[340307667,1729020639797,-183.01441284,0.00024679,2]
[340307668,1729020639806,-9695.86589885,0.0002468,3]
[340307678,1729020639961,-10013.36,0.0002467,10]
[340307680,1729020639971,-46235.40405478,0.0002468,3]
[340307742,1729020646281,-500.0,0.00024673,2]
[340307743,1729020646290,-543.0,0.00024673,2]
[340307744,1729020646300,-47052.94637237,0.0002468,3]
[340307745,1729020646309,-29345.5182295,0.0002468,3]
[340310485,1729020697277,214.63266,0.00023675,2]
[340310486,1729020728894,166.666666,0.00023271,2]
[340310488,1729020924730,2369.31352,0.00023649,2]
[340310489,1729021073116,166.516567,0.00023791,2]
[340310490,1729021073401,166.516567,0.00023946,2]
[340310491,1729021201330,214.632661,0.00023529,2]
[340310492,1729021426987,1579.542346,0.00023524,2]
[340310493,1729021609654,130000.0,0.00024,2]
[340310494,1729021616063,176.951996,0.00023792,2]
[340310495,1729021616521,176.951996,0.00023969,2]
[340310497,1729021722275,214.632661,0.00023571,2]
[340310503,1729021831966,-176.951996,0.00024146,2]
[340310504,1729021831976,-1579.542346,0.00024209,2]
[340310505,1729021831985,-11.825658,0.00024324,2]
[340310529,1729021838134,-165.126338,0.00024324,2]
[340310531,1729021838146,-176.951996,0.00024501,2]
[340310534,1729021838158,-1000.0,0.0002455,2]
[340310536,1729021838171,-300.0,0.00024578,2]
[340310539,1729021838189,-300.0,0.00024578,2]
[340310541,1729021838201,-3075.4255754,0.00024579,2]
[340310648,1729021840027,-4870.81795368,0.00024579,2]
[340310651,1729021840043,-54.40622144,0.00024579,2]
[340310654,1729021840056,-2933.28512919,0.00024629,2]
[340310656,1729021840070,-6996.43747079,0.00024632,2]
[340310659,1729021840084,-798.94312758,0.0002467,2]
[340310661,1729021840096,-186.38,0.0002467,3]
[340310663,1729021840106,-188.19900235,0.0002467,3]
[340310665,1729021840119,-370.96099765,0.0002467,3]
[340310668,1729021840131,-5389.97,0.0002467,10]
[340310670,1729021840142,-500.0,0.00024673,2]
[340310672,1729021840155,-500.0,0.00024673,2]
[340310674,1729021840167,-312.16204734,0.00024673,2]
[340310677,1729021840180,-243.75048427,0.00024673,2]
[340310679,1729021840191,-500.0,0.00024673,2]
[340310681,1729021840202,-502.72972051,0.00024673,2]
[340310684,1729021840216,-500.0,0.00024673,2]
[340310686,1729021840228,-500.0,0.00024673,2]
[340310688,1729021840241,-500.0,0.00024673,2]
[340310690,1729021840251,-500.0,0.00024673,2]
[340310692,1729021840262,-500.0,0.00024673,2]
[340310695,1729021840273,-500.0,0.00024673,2]
[340310697,1729021840285,-501.3774042,0.00024673,2]
[340310700,1729021840301,-500.0,0.00024673,2]
[340310702,1729021840313,-500.0,0.00024673,2]
[340310704,1729021840325,-500.0,0.00024673,2]
[340310707,1729021840337,-500.0,0.00024673,2]
[340310709,1729021840348,-150.0,0.00024673,2]
[340310711,1729021840361,-520.0,0.00024673,2]
[340310713,1729021840373,-150.0,0.00024673,2]
[340310716,1729021840388,-150.0,0.00024673,2]
[340310718,1729021840399,-150.0,0.00024673,2]
[340310720,1729021840413,-150.0,0.00024673,2]
[340310722,1729021840424,-205.39010044,0.00024673,2]
[340310725,1729021840437,-205.62122865,0.00024673,2]
[340310727,1729021840448,-176.951996,0.00024678,2]
[340310729,1729021840459,-424.58107141,0.00024679,2]
[340310731,1729021840470,-544.65086099,0.00024679,2]
[340310734,1729021840481,-166.33581003,0.00024679,2]
[340310736,1729021840493,-178.78447779,0.00024679,2]
[340310738,1729021840507,-241.59408137,0.00024679,2]
[340310741,1729021840518,-500.0,0.00024679,2]
[340310743,1729021840530,-500.0,0.00024679,2]
[340310745,1729021840542,-519.98648063,0.00024679,2]
[340310747,1729021840554,-14774.39817041,0.0002468,4]
[340310749,1729021840566,-22969.51912309,0.0002468,3]
[340310813,1729022003587,526.514115,0.0002367,2]
[340310814,1729022191129,800.0,0.00024,2]
[340310815,1729022225337,176.951998,0.00023796,2]
[340310816,1729022420852,24900.0,0.00023616,2]
[340310817,1729022447249,168.068325,0.00023347,2]
[340310823,1729022499405,166.666666,0.00023225,2]
[340310824,1729022535077,468.769625,0.00023637,2]
[340310825,1729022564751,1000.0,0.00024,2]
[340310826,1729022756293,176.951998,0.00023758,2]
[340310828,1729022920548,24900.0,0.00023554,2]
[340310829,1729022947572,164.928839,0.00023231,2]
[340310853,1729023032039,-468.769625,0.00024322,2]
[340310855,1729023032049,-1250.98084928,0.00024461,2]
[340311013,1729023041248,-5749.58768246,0.00024461,2]
[340311014,1729023041265,-300.0,0.00024472,2]
[340311015,1729023041278,-300.0,0.00024472,2]
[340311016,1729023041288,-243.75048427,0.00024473,2]
[340311017,1729023041298,-312.16204734,0.00024473,2]
[340311018,1729023041309,-501.3774042,0.00024473,2]
[340311019,1729023041320,-500.0,0.00024473,2]
[340311020,1729023041331,-500.0,0.00024473,2]
[340311021,1729023041341,-532.62875172,0.00024493,2]
[340311022,1729023041350,-842.92733639,0.00024493,2]
[340311023,1729023041363,-1461.00000922,0.00024493,2]
[340311024,1729023041375,-4850.04268495,0.00024493,2]
[340311025,1729023041387,-45086.27255594,0.00024493,2]
[340311026,1729023041399,-8075.85108579,0.00024493,2]
[340311027,1729023041411,-3682.73170395,0.00024493,2]
[340311028,1729023041421,-1000.0,0.00024561,2]
[340311029,1729023041431,-500.0,0.00024573,2]
[340311030,1729023041440,-500.0,0.00024573,2]
[340311031,1729023041450,-500.0,0.00024573,2]
[340311032,1729023041461,-500.0,0.00024573,2]
[340311033,1729023041471,-500.0,0.00024573,2]
[340311034,1729023041480,-500.0,0.00024573,2]
[340311035,1729023041490,-500.0,0.00024573,2]
[340311036,1729023041499,-469.54051505,0.00024573,2]
[340311037,1729023041509,-502.91813906,0.00024573,2]
[340311038,1729023041519,-500.0,0.00024573,2]
[340311039,1729023041529,-500.0,0.00024573,2]
[340311040,1729023041540,-500.0,0.00024573,2]
[340311041,1729023041551,-500.0,0.00024573,2]
[340311042,1729023041561,-500.0,0.00024573,2]
[340311043,1729023041571,-501.73703915,0.00024573,2]
[340311044,1729023041579,-2639.95661628,0.00024573,2]
[340311045,1729023041588,-372.76,0.0002458,3]
[340311046,1729023041599,-611.82833231,0.00024589,2]
[340311047,1729023041610,-166.33581003,0.00024589,2]
[340311048,1729023041619,-178.78447779,0.00024589,2]
[340311049,1729023041628,-500.0,0.00024589,2]
[340311050,1729023041640,-218.98846055,0.00024589,2]
[340311051,1729023041651,-500.0,0.00024589,2]
[340311052,1729023041661,-500.0,0.00024589,2]
[340311053,1729023041672,-500.0,0.00024589,2]
[340311054,1729023041682,-500.0,0.00024589,2]
[340311055,1729023041693,-500.0,0.00024589,2]